[Event "Titled Tuesday Blitz August 22 Early 2023"]
[White "Tanwir, Furqan"]
[Black "Martins, Bruno Andre Leite"]
[WhiteFideId "2023962"]
[BlackFideId "1942255"]
[WhiteElo "2361"]
[BlackElo "2549"]
[Result "1-0"]
[Round "7"]
[TimeControl "180+1"]
[Date "2023.08.22"]
[WhiteClock "0:02:22"]
[BlackClock "0:00:56"]
[Board "158"]

1. e4 {[%clk 0:03:00]}  c5 {[%clk 0:03:00]} 2. Nf3 {[%clk 0:03:00]}  d6 {[%clk 0:03:00]} 3. d4 {[%clk 0:03:00]}  cxd4 {[%clk 0:03:01]} 4. Nxd4 {[%clk 0:03:00]}  Nf6 {[%clk 0:03:01]} 5. Nc3 {[%clk 0:03:00]}  a6 {[%clk 0:03:02]} 6. Bg5 {[%clk 0:03:00]}  e6 {[%clk 0:03:02]} 7. f4 {[%clk 0:03:00]}  Be7 {[%clk 0:03:02]} 8. Qf3 {[%clk 0:03:00]}  Qc7 {[%clk 0:03:02]} 9. O-O-O {[%clk 0:03:00]}  Nbd7 {[%clk 0:03:02]} 10. Bd3 {[%clk 0:02:59]}  b6 {[%clk 0:03:02]} 11. Rhe1 {[%clk 0:02:58]}  Bb7 {[%clk 0:03:02]} 12. Nd5 {[%clk 0:02:52]}  exd5 {[%clk 0:03:00]} 13. Nf5 {[%clk 0:02:52]}  Kf8 {[%clk 0:03:00]} 14. Nxe7 {[%clk 0:02:52]}  Kxe7 {[%clk 0:02:57]} 15. e5 {[%clk 0:02:51]}  dxe5 {[%clk 0:02:29]} 16. fxe5 {[%clk 0:02:51]}  Nxe5 {[%clk 0:02:08]} 17. Qf4 {[%clk 0:02:51]}  Rhe8 {[%clk 0:01:48]} 18. Rxe5+ {[%clk 0:02:50]}  Kf8 {[%clk 0:01:44]} 19. Bxf6 {[%clk 0:02:49]}  Rxe5 {[%clk 0:01:43]} 20. Bxe5 {[%clk 0:02:45]}  Qc6 {[%clk 0:01:29]} 21. Bxh7 {[%clk 0:02:44]}  Rc8 {[%clk 0:01:29]} 22. Bd3 {[%clk 0:02:42]}  a5 {[%clk 0:01:27]} 23. Re1 {[%clk 0:02:33]}  Ba6 {[%clk 0:01:27]} 24. Bf5 {[%clk 0:02:25]}  Bc4 {[%clk 0:00:56]} 25. Bxc8 {[%clk 0:02:22]} 1-0


[Site "https://www.chess.com"]

[Event "Titled Tuesday Blitz August 22 Early 2023"]
[White "Hnydiuk, Aleksander"]
[Black "Bifulco, Michel"]
[WhiteFideId "1109057"]
[BlackFideId "828580"]
[WhiteElo "2535"]
[BlackElo "2342"]
[Result "0-1"]
[Round "7"]
[TimeControl "180+1"]
[Date "2023.08.22"]
[WhiteClock "0:00:00"]
[BlackClock "0:00:05"]
[Board "159"]

1. e4 {[%clk 0:02:30]}  e5 {[%clk 0:02:59]} 2. Nf3 {[%clk 0:02:30]}  Nc6 {[%clk 0:02:59]} 3. d4 {[%clk 0:02:30]}  exd4 {[%clk 0:02:59]} 4. Nxd4 {[%clk 0:02:31]}  Nf6 {[%clk 0:02:58]} 5. Nxc6 {[%clk 0:02:29]}  bxc6 {[%clk 0:02:59]} 6. e5 {[%clk 0:02:25]}  Qe7 {[%clk 0:02:59]} 7. Qe2 {[%clk 0:02:25]}  Nd5 {[%clk 0:02:59]} 8. h4 {[%clk 0:02:22]}  Qe6 {[%clk 0:02:58]} 9. Nd2 {[%clk 0:02:16]}  Nb4 {[%clk 0:02:36]} 10. Nf3 {[%clk 0:02:12]}  Ba6 {[%clk 0:02:34]} 11. c4 {[%clk 0:02:09]}  d5 {[%clk 0:02:17]} 12. b3 {[%clk 0:01:27]}  Bc5 {[%clk 0:02:09]} 13. a3 {[%clk 0:01:16]}  dxc4 {[%clk 0:01:52]} 14. axb4 {[%clk 0:01:11]}  Bxb4+ {[%clk 0:01:50]} 15. Bd2 {[%clk 0:01:06]}  c3 {[%clk 0:01:50]} 16. Rxa6 {[%clk 0:00:57]}  cxd2+ {[%clk 0:01:46]} 17. Nxd2 {[%clk 0:00:54]}  Rd8 {[%clk 0:01:41]} 18. Ra2 {[%clk 0:00:20]}  Qxb3 {[%clk 0:01:39]} 19. Qc4 {[%clk 0:00:20]}  Bxd2+ {[%clk 0:00:47]} 20. Rxd2 {[%clk 0:00:17]}  Qb1+ {[%clk 0:00:45]} 21. Ke2 {[%clk 0:00:16]}  O-O {[%clk 0:00:45]} 22. Rxd8 {[%clk 0:00:11]}  Rxd8 {[%clk 0:00:44]} 23. Kf3 {[%clk 0:00:11]}  h5 {[%clk 0:00:25]} 24. Kg3 {[%clk 0:00:08]}  Qe1 {[%clk 0:00:19]} 25. Qf4 {[%clk 0:00:05]}  Rd1 {[%clk 0:00:12]} 26. Kh2 {[%clk 0:00:03]}  Ra1 {[%clk 0:00:06]} 27. g3 {[%clk 0:00:00]}  Ra2 {[%clk 0:00:05]} 0-1


[Site "https://www.chess.com"]

[Event "Titled Tuesday Blitz August 22 Early 2023"]
[White "Ardila, Oscar Humberto"]
[Black "Tikhonov, Viacheslav"]
[WhiteFideId "4404742"]
[BlackFideId "44196407"]
[WhiteElo "2333"]
[BlackElo "2495"]
[Result "0-1"]
[Round "7"]
[TimeControl "180+1"]
[Date "2023.08.22"]
[WhiteClock "0:00:09"]
[BlackClock "0:00:06"]
[Board "161"]

1. d4 {[%clk 0:03:00]}  Nf6 {[%clk 0:03:00]} 2. c4 {[%clk 0:02:59]}  g6 {[%clk 0:02:59]} 3. Nc3 {[%clk 0:02:59]}  d5 {[%clk 0:02:59]} 4. Nf3 {[%clk 0:02:58]}  Bg7 {[%clk 0:02:58]} 5. e3 {[%clk 0:02:58]}  O-O {[%clk 0:02:58]} 6. Be2 {[%clk 0:02:57]}  c5 {[%clk 0:02:57]} 7. O-O {[%clk 0:02:57]}  cxd4 {[%clk 0:02:56]} 8. Nxd4 {[%clk 0:02:57]}  Nc6 {[%clk 0:02:53]} 9. Nxc6 {[%clk 0:02:57]}  bxc6 {[%clk 0:02:54]} 10. Qa4 {[%clk 0:02:57]}  Qb6 {[%clk 0:02:48]} 11. cxd5 {[%clk 0:02:52]}  cxd5 {[%clk 0:02:49]} 12. Rd1 {[%clk 0:02:48]}  Bb7 {[%clk 0:02:43]} 13. Qa3 {[%clk 0:02:39]}  e5 {[%clk 0:02:38]} 14. Na4 {[%clk 0:02:38]}  Qc6 {[%clk 0:02:30]} 15. Bd2 {[%clk 0:02:38]}  d4 {[%clk 0:02:28]} 16. Bf1 {[%clk 0:02:32]}  Nd5 {[%clk 0:02:20]} 17. Rac1 {[%clk 0:02:30]}  Qf6 {[%clk 0:02:17]} 18. exd4 {[%clk 0:02:26]}  exd4 {[%clk 0:02:18]} 19. Nc5 {[%clk 0:02:24]}  Bc8 {[%clk 0:02:14]} 20. Bc4 {[%clk 0:02:15]}  Nf4 {[%clk 0:02:09]} 21. Ne4 {[%clk 0:02:05]}  Qe5 {[%clk 0:02:07]} 22. Re1 {[%clk 0:01:57]}  Ne6 {[%clk 0:01:43]} 23. Bb4 {[%clk 0:01:47]}  Bb7 {[%clk 0:01:37]} 24. Bd6 {[%clk 0:01:40]}  Qf5 {[%clk 0:01:25]} 25. Ng3 {[%clk 0:01:22]}  Qg5 {[%clk 0:01:11]} 26. Bxf8 {[%clk 0:01:21]}  Bxf8 {[%clk 0:01:09]} 27. Qb3 {[%clk 0:01:17]}  Nc5 {[%clk 0:01:03]} 28. Bxf7+ {[%clk 0:00:49]}  Kh8 {[%clk 0:01:02]} 29. Qc4 {[%clk 0:00:49]}  Ba6 {[%clk 0:00:58]} 30. Qd5 {[%clk 0:00:48]}  Qxd5 {[%clk 0:00:54]} 31. Bxd5 {[%clk 0:00:48]}  Rd8 {[%clk 0:00:55]} 32. Bc4 {[%clk 0:00:42]}  d3 {[%clk 0:00:46]} 33. Bxa6 {[%clk 0:00:28]}  d2 {[%clk 0:00:46]} 34. Bc4 {[%clk 0:00:27]}  Bg7 {[%clk 0:00:40]} 35. Rcd1 {[%clk 0:00:23]}  dxe1=Q+ {[%clk 0:00:40]} 36. Rxe1 {[%clk 0:00:23]}  h5 {[%clk 0:00:38]} 37. b3 {[%clk 0:00:20]}  Rd2 {[%clk 0:00:37]} 38. Nf1 {[%clk 0:00:15]}  Rxa2 {[%clk 0:00:37]} 39. Re8+ {[%clk 0:00:14]}  Kh7 {[%clk 0:00:36]} 40. Re7 {[%clk 0:00:15]}  Rb2 {[%clk 0:00:29]} 41. h3 {[%clk 0:00:15]}  a5 {[%clk 0:00:27]} 42. g4 {[%clk 0:00:15]}  hxg4 {[%clk 0:00:27]} 43. hxg4 {[%clk 0:00:15]}  Nxb3 {[%clk 0:00:27]} 44. Bxb3 {[%clk 0:00:15]}  Rxb3 {[%clk 0:00:28]} 45. Ng3 {[%clk 0:00:14]}  a4 {[%clk 0:00:24]} 46. Ra7 {[%clk 0:00:13]}  a3 {[%clk 0:00:22]} 47. Ne4 {[%clk 0:00:13]}  Kg8 {[%clk 0:00:22]} 48. Ng5 {[%clk 0:00:13]}  Bb2 {[%clk 0:00:14]} 49. Ra8+ {[%clk 0:00:12]}  Kg7 {[%clk 0:00:13]} 50. Ra7+ {[%clk 0:00:13]}  Kf6 {[%clk 0:00:13]} 51. Ne4+ {[%clk 0:00:13]}  Ke5 {[%clk 0:00:14]} 52. Nc5 {[%clk 0:00:13]}  Rc3 {[%clk 0:00:13]} 53. Nd7+ {[%clk 0:00:12]}  Kd4 {[%clk 0:00:12]} 54. Ra4+ {[%clk 0:00:11]}  Rc4 {[%clk 0:00:11]} 55. Ra6 {[%clk 0:00:10]}  Kc3 {[%clk 0:00:09]} 56. Nb6 {[%clk 0:00:09]}  Rxg4+ {[%clk 0:00:07]} 57. Kf1 {[%clk 0:00:09]}  Kb3 {[%clk 0:00:08]} 58. Na4 {[%clk 0:00:07]}  Rxa4 {[%clk 0:00:06]} 59. Rb6+ {[%clk 0:00:07]}  Rb4 {[%clk 0:00:07]} 60. Rxg6 {[%clk 0:00:07]}  a2 {[%clk 0:00:07]} 61. Kg2 {[%clk 0:00:08]}  a1=Q {[%clk 0:00:06]} 62. Rg3+ {[%clk 0:00:09]} 0-1


[Site "https://www.chess.com"]

[Event "Titled Tuesday Blitz August 22 Early 2023"]
[White "Battlecruiser_Operational"]
[Black "Yurasova, Daria"]
[BlackFideId "34146919"]
[WhiteElo "2323"]
[BlackElo "2487"]
[Result "0-1"]
[Round "7"]
[TimeControl "180+1"]
[Date "2023.08.22"]
[WhiteClock "0:00:01"]
[BlackClock "0:00:10"]
[Board "163"]

1. d4 {[%clk 0:03:00]}  d5 {[%clk 0:02:54]} 2. c4 {[%clk 0:02:59]}  c6 {[%clk 0:02:49]} 3. Nf3 {[%clk 0:02:58]}  Nf6 {[%clk 0:02:47]} 4. e3 {[%clk 0:02:58]}  Bf5 {[%clk 0:02:45]} 5. Bd3 {[%clk 0:02:53]}  Bg6 {[%clk 0:02:45]} 6. Nc3 {[%clk 0:02:51]}  e6 {[%clk 0:02:45]} 7. O-O {[%clk 0:02:48]}  Be7 {[%clk 0:02:45]} 8. Qe2 {[%clk 0:02:45]}  O-O {[%clk 0:02:42]} 9. e4 {[%clk 0:02:44]}  dxe4 {[%clk 0:02:43]} 10. Nxe4 {[%clk 0:02:44]}  Nxe4 {[%clk 0:02:44]} 11. Bxe4 {[%clk 0:02:45]}  Bxe4 {[%clk 0:02:45]} 12. Qxe4 {[%clk 0:02:46]}  Nd7 {[%clk 0:02:46]} 13. Rd1 {[%clk 0:02:43]}  Nf6 {[%clk 0:02:46]} 14. Qe2 {[%clk 0:02:42]}  Qc7 {[%clk 0:02:43]} 15. Bg5 {[%clk 0:02:39]}  Rad8 {[%clk 0:02:43]} 16. Rd3 {[%clk 0:02:38]}  b5 {[%clk 0:02:33]} 17. Rc1 {[%clk 0:02:30]}  Qb7 {[%clk 0:02:30]} 18. Ne5 {[%clk 0:02:22]}  a6 {[%clk 0:02:18]} 19. b3 {[%clk 0:02:02]}  Rd6 {[%clk 0:01:50]} 20. Qf3 {[%clk 0:01:33]}  bxc4 {[%clk 0:01:35]} 21. Rxc4 {[%clk 0:01:31]}  Nd5 {[%clk 0:01:26]} 22. Bxe7 {[%clk 0:01:26]}  Nxe7 {[%clk 0:01:27]} 23. Rdc3 {[%clk 0:01:21]}  Qa7 {[%clk 0:01:11]} 24. Qf4 {[%clk 0:01:04]}  Nd5 {[%clk 0:01:06]} 25. Qg3 {[%clk 0:00:33]}  Nxc3 {[%clk 0:01:02]} 26. Qxc3 {[%clk 0:00:34]}  h6 {[%clk 0:00:44]} 27. Nxc6 {[%clk 0:00:31]}  Qd7 {[%clk 0:00:42]} 28. Ne5 {[%clk 0:00:29]}  Qb5 {[%clk 0:00:40]} 29. h4 {[%clk 0:00:23]}  Qd5 {[%clk 0:00:36]} 30. Qb4 {[%clk 0:00:13]}  a5 {[%clk 0:00:32]} 31. Qa3 {[%clk 0:00:12]}  Rfd8 {[%clk 0:00:25]} 32. Nf3 {[%clk 0:00:11]}  Qe4 {[%clk 0:00:23]} 33. Qxa5 {[%clk 0:00:11]}  Rd5 {[%clk 0:00:20]} 34. Qb6 {[%clk 0:00:10]}  Qb1+ {[%clk 0:00:18]} 35. Kh2 {[%clk 0:00:10]}  Qxa2 {[%clk 0:00:19]} 36. Rc7 {[%clk 0:00:09]}  Qxf2 {[%clk 0:00:19]} 37. Qb7 {[%clk 0:00:09]}  Rf5 {[%clk 0:00:17]} 38. b4 {[%clk 0:00:06]}  Qe3 {[%clk 0:00:17]} 39. b5 {[%clk 0:00:05]}  Qf4+ {[%clk 0:00:17]} 40. Kh1 {[%clk 0:00:06]}  Rxb5 {[%clk 0:00:13]} 41. Qxb5 {[%clk 0:00:02]}  Qxc7 {[%clk 0:00:14]} 42. Kg1 {[%clk 0:00:01]}  Qc1+ {[%clk 0:00:14]} 43. Kf2 {[%clk 0:00:02]}  Qc7 {[%clk 0:00:14]} 44. Ke3 {[%clk 0:00:02]}  Qd7 {[%clk 0:00:14]} 45. Qb2 {[%clk 0:00:03]}  Rb8 {[%clk 0:00:11]} 46. Qc3 {[%clk 0:00:03]}  Rc8 {[%clk 0:00:10]} 47. Qb4 {[%clk 0:00:03]}  Qc7 {[%clk 0:00:11]} 48. Qb5 {[%clk 0:00:03]}  Qc3+ {[%clk 0:00:11]} 49. Kf4 {[%clk 0:00:03]}  Qc6 {[%clk 0:00:09]} 50. Kg3 {[%clk 0:00:01]}  Qxb5 {[%clk 0:00:10]} 0-1


[Site "https://www.chess.com"]

[Event "Titled Tuesday Blitz August 22 Early 2023"]
[White "Derichs, Roger"]
[Black "Kaganskiy, Gleb"]
[WhiteFideId "4630076"]
[BlackFideId "4132025"]
[WhiteElo "2442"]
[BlackElo "2311"]
[Result "0-1"]
[Round "7"]
[TimeControl "180+1"]
[Date "2023.08.22"]
[WhiteClock "0:01:29"]
[BlackClock "0:01:49"]
[Board "167"]

1. Nf3 {[%clk 0:03:00]}  d5 {[%clk 0:02:56]} 2. c4 {[%clk 0:02:58]}  e6 {[%clk 0:02:55]} 3. g3 {[%clk 0:02:58]}  Nf6 {[%clk 0:02:55]} 4. Bg2 {[%clk 0:02:58]}  Be7 {[%clk 0:02:55]} 5. O-O {[%clk 0:02:57]}  O-O {[%clk 0:02:56]} 6. b3 {[%clk 0:02:58]}  c5 {[%clk 0:02:54]} 7. e3 {[%clk 0:02:57]}  d4 {[%clk 0:02:53]} 8. exd4 {[%clk 0:02:54]}  cxd4 {[%clk 0:02:53]} 9. Re1 {[%clk 0:02:53]}  Nc6 {[%clk 0:02:49]} 10. Ne5 {[%clk 0:02:52]}  Nxe5 {[%clk 0:02:48]} 11. Rxe5 {[%clk 0:02:52]}  Ne8 {[%clk 0:02:46]} 12. d3 {[%clk 0:02:48]}  f6 {[%clk 0:02:46]} 13. Re2 {[%clk 0:02:45]}  e5 {[%clk 0:02:46]} 14. h3 {[%clk 0:02:45]}  Nd6 {[%clk 0:02:38]} 15. f4 {[%clk 0:02:43]}  Nf7 {[%clk 0:02:34]} 16. Na3 {[%clk 0:02:27]}  Rb8 {[%clk 0:02:20]} 17. Nc2 {[%clk 0:02:23]}  Bd7 {[%clk 0:02:20]} 18. fxe5 {[%clk 0:02:09]}  fxe5 {[%clk 0:02:15]} 19. Ba3 {[%clk 0:02:02]}  Bxa3 {[%clk 0:02:11]} 20. Nxa3 {[%clk 0:02:01]}  Bc6 {[%clk 0:02:11]} 21. Nc2 {[%clk 0:01:54]}  Bxg2 {[%clk 0:02:10]} 22. Kxg2 {[%clk 0:01:54]}  b5 {[%clk 0:02:07]} 23. c5 {[%clk 0:01:47]}  Qd5+ {[%clk 0:02:03]} 24. Kh2 {[%clk 0:01:47]}  Ng5 {[%clk 0:01:56]} 25. Ne1 {[%clk 0:01:44]}  Rf1 {[%clk 0:01:49]} 26. Rg2 {[%clk 0:01:29]}  Rxe1 {[%clk 0:01:49]} 0-1


[Site "https://www.chess.com"]

[Event "Titled Tuesday Blitz August 22 Early 2023"]
[White "Goldin, Roman"]
[Black "GAO"]
[WhiteFideId "2803860"]
[WhiteElo "2422"]
[BlackElo "2290"]
[Result "1-0"]
[Round "7"]
[TimeControl "180+1"]
[Date "2023.08.22"]
[WhiteClock "0:00:16"]
[BlackClock "0:00:08"]
[Board "169"]

1. e4 {[%clk 0:02:59]}  c5 {[%clk 0:02:59]} 2. Nf3 {[%clk 0:02:59]}  Nc6 {[%clk 0:02:59]} 3. c3 {[%clk 0:02:59]}  g6 {[%clk 0:02:48]} 4. d4 {[%clk 0:02:57]}  cxd4 {[%clk 0:02:49]} 5. cxd4 {[%clk 0:02:57]}  d5 {[%clk 0:02:49]} 6. exd5 {[%clk 0:02:56]}  Qxd5 {[%clk 0:02:48]} 7. Nc3 {[%clk 0:02:56]}  Qd6 {[%clk 0:02:46]} 8. d5 {[%clk 0:02:55]}  Ne5 {[%clk 0:02:44]} 9. Nb5 {[%clk 0:02:46]}  Nxf3+ {[%clk 0:02:31]} 10. Qxf3 {[%clk 0:02:42]}  Qe5+ {[%clk 0:02:26]} 11. Be2 {[%clk 0:02:34]}  Bh6 {[%clk 0:01:43]} 12. O-O {[%clk 0:02:15]}  a6 {[%clk 0:01:34]} 13. Na3 {[%clk 0:01:59]}  Bxc1 {[%clk 0:01:10]} 14. Raxc1 {[%clk 0:01:54]}  Nf6 {[%clk 0:01:09]} 15. Nc4 {[%clk 0:01:52]}  Qd4 {[%clk 0:00:33]} 16. Rfd1 {[%clk 0:01:46]}  Qa7 {[%clk 0:00:22]} 17. d6 {[%clk 0:01:20]}  Bg4 {[%clk 0:00:22]} 18. Qd3 {[%clk 0:00:32]}  Bxe2 {[%clk 0:00:20]} 19. Qxe2 {[%clk 0:00:30]}  e6 {[%clk 0:00:21]} 20. Qe5 {[%clk 0:00:26]}  Qxf2+ {[%clk 0:00:11]} 21. Kxf2 {[%clk 0:00:23]}  Ng4+ {[%clk 0:00:11]} 22. Kg3 {[%clk 0:00:22]}  Nxe5 {[%clk 0:00:12]} 23. Nxe5 {[%clk 0:00:22]}  O-O {[%clk 0:00:13]} 24. Rc7 {[%clk 0:00:20]}  b5 {[%clk 0:00:08]} 25. d7 {[%clk 0:00:20]}  f6 {[%clk 0:00:08]} 26. Nc6 {[%clk 0:00:20]}  e5 {[%clk 0:00:08]} 27. d8=Q {[%clk 0:00:17]}  Rfxd8 {[%clk 0:00:08]} 28. Nxd8 {[%clk 0:00:16]} 1-0


[Site "https://www.chess.com"]

[Event "Titled Tuesday Blitz August 22 Early 2023"]
[White "Rosenberg, Evan S"]
[Black "laimis61"]
[WhiteFideId "2019299"]
[WhiteElo "2418"]
[BlackElo "2276"]
[Result "0-1"]
[Round "7"]
[TimeControl "180+1"]
[Date "2023.08.22"]
[WhiteClock "0:00:51"]
[BlackClock "0:01:02"]
[Board "170"]

1. d4 {[%clk 0:03:00]}  d5 {[%clk 0:02:57]} 2. Nf3 {[%clk 0:03:00]}  e6 {[%clk 0:02:55]} 3. c4 {[%clk 0:02:57]}  dxc4 {[%clk 0:02:53]} 4. e3 {[%clk 0:02:53]}  Nf6 {[%clk 0:02:52]} 5. Bxc4 {[%clk 0:02:53]}  c5 {[%clk 0:02:51]} 6. O-O {[%clk 0:02:53]}  a6 {[%clk 0:02:51]} 7. a4 {[%clk 0:02:48]}  Nc6 {[%clk 0:02:49]} 8. Nc3 {[%clk 0:02:47]}  Be7 {[%clk 0:02:48]} 9. d5 {[%clk 0:02:46]}  exd5 {[%clk 0:02:47]} 10. Nxd5 {[%clk 0:02:46]}  Nxd5 {[%clk 0:02:47]} 11. Qxd5 {[%clk 0:02:47]}  Qxd5 {[%clk 0:02:45]} 12. Bxd5 {[%clk 0:02:47]}  Nb4 {[%clk 0:02:45]} 13. Bc4 {[%clk 0:02:35]}  O-O {[%clk 0:02:41]} 14. Bd2 {[%clk 0:02:33]}  Bf5 {[%clk 0:02:24]} 15. Bc3 {[%clk 0:02:19]}  Rad8 {[%clk 0:02:12]} 16. h3 {[%clk 0:02:14]}  h6 {[%clk 0:02:09]} 17. Rfd1 {[%clk 0:02:08]}  Bc2 {[%clk 0:01:55]} 18. Rdc1 {[%clk 0:02:00]}  Be4 {[%clk 0:01:49]} 19. Kf1 {[%clk 0:01:56]}  Nd3 {[%clk 0:01:42]} 20. Rd1 {[%clk 0:01:46]}  Nb4 {[%clk 0:01:41]} 21. Bxb4 {[%clk 0:01:41]}  cxb4 {[%clk 0:01:40]} 22. Ke2 {[%clk 0:01:42]}  Bf6 {[%clk 0:01:26]} 23. Nd4 {[%clk 0:01:05]}  Bxg2 {[%clk 0:01:23]} 24. Rg1 {[%clk 0:01:04]}  Bxh3 {[%clk 0:01:22]} 25. b3 {[%clk 0:01:00]}  Bxd4 {[%clk 0:01:17]} 26. exd4 {[%clk 0:01:01]}  Rxd4 {[%clk 0:01:16]} 27. Rg3 {[%clk 0:01:02]}  Re8+ {[%clk 0:01:11]} 28. Kf3 {[%clk 0:00:59]}  Bd7 {[%clk 0:01:03]} 29. Rag1 {[%clk 0:00:51]}  Bc6+ {[%clk 0:01:02]} 0-1


[Site "https://www.chess.com"]

[Event "Titled Tuesday Blitz August 22 Early 2023"]
[White "Kuchava, Ana"]
[Black "Carrasco Miranda, Andres"]
[WhiteFideId "13605348"]
[BlackFideId "3405990"]
[WhiteElo "2184"]
[BlackElo "2395"]
[Result "0-1"]
[Round "7"]
[TimeControl "180+1"]
[Date "2023.08.22"]
[WhiteClock "0:00:00"]
[BlackClock "0:00:21"]
[Board "177"]

1. d4 {[%clk 0:03:00]}  Nf6 {[%clk 0:02:57]} 2. Nf3 {[%clk 0:03:00]}  g6 {[%clk 0:02:57]} 3. c4 {[%clk 0:02:57]}  Bg7 {[%clk 0:02:56]} 4. Nc3 {[%clk 0:02:55]}  O-O {[%clk 0:02:49]} 5. e4 {[%clk 0:02:54]}  d6 {[%clk 0:02:49]} 6. Be2 {[%clk 0:02:53]}  e5 {[%clk 0:02:49]} 7. O-O {[%clk 0:02:50]}  Nc6 {[%clk 0:02:49]} 8. Be3 {[%clk 0:02:48]}  Ng4 {[%clk 0:02:48]} 9. Bg5 {[%clk 0:02:45]}  f6 {[%clk 0:02:47]} 10. Bc1 {[%clk 0:02:44]}  Nh6 {[%clk 0:02:47]} 11. dxe5 {[%clk 0:01:55]}  dxe5 {[%clk 0:02:47]} 12. Qxd8 {[%clk 0:01:48]}  Nxd8 {[%clk 0:02:47]} 13. h3 {[%clk 0:01:47]}  c6 {[%clk 0:02:47]} 14. Be3 {[%clk 0:01:40]}  Ne6 {[%clk 0:02:45]} 15. Rfd1 {[%clk 0:01:32]}  Nf7 {[%clk 0:02:45]} 16. Rd2 {[%clk 0:01:16]}  f5 {[%clk 0:02:39]} 17. Rdd1 {[%clk 0:01:02]}  f4 {[%clk 0:02:08]} 18. Bd2 {[%clk 0:00:58]}  Nd4 {[%clk 0:02:08]} 19. Be1 {[%clk 0:00:41]}  Nxe2+ {[%clk 0:02:03]} 20. Nxe2 {[%clk 0:00:40]}  Be6 {[%clk 0:02:00]} 21. b3 {[%clk 0:00:39]}  a5 {[%clk 0:01:53]} 22. Bc3 {[%clk 0:00:36]}  b6 {[%clk 0:01:43]} 23. Rd2 {[%clk 0:00:30]}  Rfd8 {[%clk 0:01:41]} 24. Rad1 {[%clk 0:00:30]}  Rxd2 {[%clk 0:01:42]} 25. Rxd2 {[%clk 0:00:31]}  a4 {[%clk 0:01:40]} 26. Kh2 {[%clk 0:00:28]}  Kf8 {[%clk 0:01:33]} 27. Nc1 {[%clk 0:00:25]}  axb3 {[%clk 0:01:06]} 28. axb3 {[%clk 0:00:26]}  b5 {[%clk 0:00:44]} 29. cxb5 {[%clk 0:00:17]}  cxb5 {[%clk 0:00:45]} 30. Bb4+ {[%clk 0:00:17]}  Ke8 {[%clk 0:00:45]} 31. Rd3 {[%clk 0:00:14]}  Rc8 {[%clk 0:00:42]} 32. Ne2 {[%clk 0:00:13]}  Rc2 {[%clk 0:00:39]} 33. Rd2 {[%clk 0:00:14]}  Bxb3 {[%clk 0:00:36]} 34. Rxc2 {[%clk 0:00:12]}  Bxc2 {[%clk 0:00:37]} 35. Nc3 {[%clk 0:00:13]}  Bd3 {[%clk 0:00:26]} 36. Ne1 {[%clk 0:00:10]}  Bc4 {[%clk 0:00:27]} 37. f3 {[%clk 0:00:11]}  Bf8 {[%clk 0:00:25]} 38. Bxf8 {[%clk 0:00:09]}  Kxf8 {[%clk 0:00:26]} 39. Nc2 {[%clk 0:00:10]}  Ke7 {[%clk 0:00:23]} 40. Na3 {[%clk 0:00:08]}  b4 {[%clk 0:00:21]} 41. Nxc4 {[%clk 0:00:08]}  bxc3 {[%clk 0:00:21]} 42. Na3 {[%clk 0:00:09]}  Nd6 {[%clk 0:00:20]} 43. Kg1 {[%clk 0:00:09]}  Nb5 {[%clk 0:00:21]} 44. Nc2 {[%clk 0:00:00]}  Nd4 {[%clk 0:00:21]} 0-1


[Site "https://www.chess.com"]

[Event "Titled Tuesday Blitz August 22 Early 2023"]
[White "Polaczek, Richard"]
[Black "Baruch, Liam"]
[WhiteFideId "200026"]
[BlackFideId "14322064"]
[WhiteElo "2390"]
[BlackElo "2160"]
[Result "1-0"]
[Round "7"]
[TimeControl "180+1"]
[Date "2023.08.22"]
[WhiteClock "0:00:34"]
[BlackClock "0:00:02"]
[Board "178"]

1. d4 {[%clk 0:02:59]}  d5 {[%clk 0:03:00]} 2. c4 {[%clk 0:02:58]}  e6 {[%clk 0:03:00]} 3. Nc3 {[%clk 0:02:57]}  Nf6 {[%clk 0:03:01]} 4. cxd5 {[%clk 0:02:56]}  exd5 {[%clk 0:03:01]} 5. Bg5 {[%clk 0:02:56]}  Be7 {[%clk 0:03:02]} 6. e3 {[%clk 0:02:55]}  c6 {[%clk 0:03:02]} 7. Qc2 {[%clk 0:02:53]}  O-O {[%clk 0:03:03]} 8. Bd3 {[%clk 0:02:53]}  Nbd7 {[%clk 0:03:04]} 9. Nge2 {[%clk 0:02:53]}  Re8 {[%clk 0:03:04]} 10. O-O {[%clk 0:02:52]}  Nf8 {[%clk 0:03:02]} 11. f3 {[%clk 0:02:50]}  Be6 {[%clk 0:03:02]} 12. Rad1 {[%clk 0:02:47]}  Nh5 {[%clk 0:02:55]} 13. Bxe7 {[%clk 0:02:45]}  Qxe7 {[%clk 0:02:56]} 14. e4 {[%clk 0:02:44]}  Ng6 {[%clk 0:02:51]} 15. Qd2 {[%clk 0:02:33]}  Rad8 {[%clk 0:02:33]} 16. e5 {[%clk 0:02:29]}  c5 {[%clk 0:02:27]} 17. f4 {[%clk 0:02:29]}  Bg4 {[%clk 0:02:18]} 18. h3 {[%clk 0:02:23]}  Bxe2 {[%clk 0:02:10]} 19. Nxe2 {[%clk 0:02:22]}  cxd4 {[%clk 0:02:09]} 20. g4 {[%clk 0:02:13]}  Nhxf4 {[%clk 0:02:02]} 21. Nxf4 {[%clk 0:02:11]}  Qxe5 {[%clk 0:02:02]} 22. Rde1 {[%clk 0:01:57]}  Qd6 {[%clk 0:01:52]} 23. Bxg6 {[%clk 0:01:46]}  hxg6 {[%clk 0:01:50]} 24. Qxd4 {[%clk 0:01:40]}  g5 {[%clk 0:01:45]} 25. Nh5 {[%clk 0:01:40]}  f6 {[%clk 0:01:32]} 26. Rxe8+ {[%clk 0:01:35]}  Rxe8 {[%clk 0:01:33]} 27. Rf5 {[%clk 0:01:35]}  Kh8 {[%clk 0:01:19]} 28. Rxd5 {[%clk 0:01:30]}  Qe7 {[%clk 0:01:01]} 29. Ng3 {[%clk 0:01:25]}  Qe1+ {[%clk 0:00:57]} 30. Nf1 {[%clk 0:01:25]}  Qe7 {[%clk 0:00:38]} 31. Rd7 {[%clk 0:01:19]}  Qf8 {[%clk 0:00:38]} 32. Ne3 {[%clk 0:01:08]}  Rc8 {[%clk 0:00:34]} 33. Nf5 {[%clk 0:01:04]}  Rc1+ {[%clk 0:00:27]} 34. Kg2 {[%clk 0:01:01]}  Rc2+ {[%clk 0:00:27]} 35. Kf3 {[%clk 0:00:54]}  Rc8 {[%clk 0:00:19]} 36. Ne7 {[%clk 0:00:44]}  Qf7 {[%clk 0:00:04]} 37. Nxc8 {[%clk 0:00:39]}  Kh7 {[%clk 0:00:02]} 38. Rxf7 {[%clk 0:00:34]} 1-0


[Site "https://www.chess.com"]